bitfinex/quotes_SOLUSD_20240905
["timestamp","ask_amount","ask_price","bid_price","bid_amount"]
[1725498693344,7.4869,133.57,133.54,1.49747616]
[1725498693652,7.4869,133.57,133.53,8.98617625]
[1725498694634,7.4862,133.58,133.54,7.4882]
[1725498694949,7.4862,133.58,133.55,1.49736241]
[1725498695148,7.4856,133.59,133.55,1.49736241]
[1725498695330,7.4856,133.59,133.54,7.4882]
[1725498695847,7.4856,133.59,133.54,8.98556326]
[1725498696330,7.4856,133.59,133.55,1.49736327]
[1725498697952,7.4862,133.58,133.55,1.49736327]
[1725498698124,7.4862,133.58,133.54,7.4882]
[1725498698329,7.4862,133.58,133.54,8.98559979]
[1725498699556,7.4862,133.58,133.55,1.497397]
[1725498700962,7.4862,133.58,133.54,7.4882]
[1725498701444,7.4869,133.57,133.53,26.2105]
[1725498702049,7.4863,133.58,133.53,26.2105]
[1725498702737,7.4863,133.58,133.54,8.98560072]
[1725498705435,10.77131821,133.6,133.56,7.487]
[1725498705660,7.4846,133.61,133.56,8.98429727]
[1725498708147,7.4851,133.6,133.56,8.98429727]
[1725498708758,7.4851,133.6,133.56,7.487]
[1725498708960,7.4851,133.6,133.55,26.2066]
[1725498709841,7.4859,133.59,133.55,26.2066]
[1725498710456,7.4859,133.59,133.55,18.7189]
[1725498711566,7.4862,133.58,133.55,18.7189]
[1725498712443,7.4862,133.58,133.55,20.21627568]
[1725498715769,7.4862,133.58,133.55,18.7189]
[1725498721141,7.487,133.57,133.52,18.7228]
[1725498721356,7.487,133.57,133.52,26.2121]
[1725498721649,7.4873,133.56,133.52,26.2121]
[1725498724868,7.4878,133.55,133.52,18.7228]
[1725498730375,7.4878,133.55,133.5,23.2906]
[1725498730675,7.4885,133.54,133.5,15.8001]
[1725498730866,7.4891,133.53,133.5,15.8001]
[1725498731249,7.4896,133.52,133.47,15.8082]
[1725498731451,18.7202,133.55,133.47,23.3004]
[1725498732361,7.4901,133.51,133.47,23.3004]
[1725498732659,7.4901,133.51,133.47,15.8082]
[1725498734070,7.4901,133.51,133.47,17.30640652]
[1725498734267,7.4901,133.51,133.47,24.79860652]
[1725498738982,7.4901,133.51,133.47,23.3004]
[1725498739376,7.4901,133.51,133.47,15.8082]
[1725498741079,7.491,133.5,133.47,15.8082]
[1725498741389,7.4912,133.49,133.46,18.7319]
[1725498741878,7.4912,133.49,133.45,13.7516]
[1725498743297,7.4907,133.5,133.46,8.99117873]
[1725498743770,56.1615,133.56,133.47,35.93395072]
[1725498743771,18.7188,133.56,133.47,35.93395072]
[1725498743972,18.7188,133.56,133.48,45.0]
[1725498745079,18.7188,133.56,133.49,1.49802139]
[1725498745387,18.7188,133.56,133.47,34.4357]
[1725498745688,7.4907,133.5,133.47,15.7059]
[1725498748795,7.4907,133.5,133.47,17.20416605]
[1725498748996,7.4907,133.5,133.47,15.7059]
[1725498749798,7.4907,133.5,133.47,17.20416461]
[1725498750095,7.4907,133.5,133.47,15.7059]
[1725498750280,7.4912,133.49,133.45,13.7516]
[1725498751702,7.4912,133.49,133.46,1.4983485]
[1725498752193,7.4912,133.49,133.45,13.7516]
[1725498752372,7.4908,133.5,133.46,8.99114685]
[1725498753069,7.4904,133.51,133.47,1.49827844]
[1725498753269,7.4904,133.51,133.47,8.99047844]
[1725498754378,7.4904,133.51,133.47,7.4922]
[1725498756374,7.4896,133.52,133.47,7.4922]
[1725498756973,7.4896,133.52,133.46,18.7314]
[1725498757178,7.4896,133.52,133.45,6.2583]
[1725498757179,3.27668769,133.54,133.5,7.4902]
[1725498757377,7.4879,133.55,133.51,8.98779428]
[1725498757582,7.4879,133.55,133.51,8.98764693]
[1725498757876,7.4879,133.55,133.51,8.9876251]
[1725498758481,35.2404,133.6,133.51,8.9876251]
[1725498758679,7.4868,133.57,133.52,8.98693341]
[1725498759079,7.4868,133.57,133.52,7.4893]
[1725498759400,7.4868,133.57,133.53,1.49752156]
[1725498759708,7.4868,133.57,133.52,7.4893]
[1725498759881,7.4868,133.57,133.53,1.4975198]
[1725498760089,7.4868,133.57,133.52,7.4893]
[1725498760485,6.6237,133.61,133.54,7.4883]
[1725498760694,7.4856,133.59,133.55,1.49731434]
[1725498761108,7.4861,133.58,133.53,7.4888]
[1725498762597,7.4867,133.57,133.53,7.4888]
[1725498762801,7.4867,133.57,133.52,26.2123]
[1725498764717,7.4874,133.56,133.52,20.22048071]
[1725498764902,7.4874,133.56,133.52,18.7229]
[1725498765706,7.4874,133.56,133.53,1.49758663]
[1725498767275,7.4868,133.57,133.53,1.49758663]
[1725498768402,7.4868,133.57,133.52,26.2122]
[1725498768607,7.4868,133.57,133.53,45.0]
[1725498772810,21.99952403,133.61,133.55,16.1971]
[1725498773001,21.99952403,133.61,133.56,1.49723633]
[1725498774010,7.4857,133.59,133.56,1.49723633]
[1725498778219,7.4857,133.59,133.55,23.6848]
[1725498779012,7.4862,133.58,133.55,16.1971]
[1725498783507,7.4871,133.57,133.52,26.2123]
[1725498785605,7.4878,133.55,133.51,21.5543]
[1725498785798,7.4878,133.55,133.52,45.0]
[1725498786507,7.4873,133.56,133.52,45.0]
[1725498787409,7.4873,133.56,133.51,29.0439]
[1725498787612,34.4395,133.58,133.51,15.0922]
[1725498787930,7.4907,133.5,133.48,16.0607]
[1725498788429,7.4907,133.5,133.46,18.7313]
[1725498789627,7.4916,133.49,133.44,16.4646]
[1725498790514,7.4916,133.49,133.44,23.9584]
[1725498791129,7.4916,133.49,133.45,1.49847617]
[1725498792703,7.4916,133.49,133.44,23.9584]
[1725498795729,7.4919,133.48,133.44,23.9584]
[1725498796116,7.4924,133.47,133.43,18.7359]
[1725498796428,7.4929,133.46,133.43,18.7359]
[1725498796613,6.2451,133.51,133.43,26.2304]
[1725498796614,7.4924,133.47,133.43,26.2304]
[1725498797927,7.4924,133.47,133.44,1.49859814]
[1725498801626,7.4929,133.46,133.42,7.4949]
[1725498804123,7.4929,133.46,133.41,7.4955]
[1725498804440,7.4934,133.45,133.41,7.4955]
[1725498805034,7.4934,133.45,133.42,1.4988088]
[1725498806907,3.18911507,133.49,133.43,1.49872189]
[1725498807111,18.7272,133.5,133.43,1.49872189]
[1725498807415,7.4926,133.47,133.43,1.49872189]
[1725498808614,7.4926,133.47,133.42,52.4949]
[1725498809139,7.4926,133.47,133.43,1.49858507]
[1725498809624,7.4926,133.47,133.42,52.4949]
[1725498810712,7.4926,133.47,133.43,1.49858366]
[1725498813639,7.4926,133.47,133.43,7.4944]
[1725498815616,10.68986843,133.5,133.44,1.49849158]
[1725498815938,10.68986843,133.5,133.45,7.4932]
[1725498816121,10.68986843,133.5,133.46,1.49829147]
[1725498816526,7.4901,133.51,133.46,63.7316]
[1725498816829,7.4901,133.51,133.47,1.49809985]
[1725498818149,3.26633884,133.53,133.48,7.4916]
[1725498818324,34.6437,133.56,133.49,7.4909]
[1725498818525,7.489,133.53,133.48,26.2203]
[1725498818718,34.6437,133.56,133.46,45.0]
[1725498819552,7.4893,133.53,133.48,7.4915]
[1725498821328,7.4896,133.52,133.48,7.4915]
[1725498824637,7.4896,133.52,133.49,1.49799616]
[1725498825933,7.4896,133.52,133.48,7.4915]
[1725498828735,7.4896,133.52,133.49,1.49799434]
[1725498829361,7.4896,133.52,133.48,7.4915]
[1725498830154,7.4896,133.52,133.49,1.49799393]
[1725498830746,7.4896,133.52,133.48,7.4915]
[1725498831048,7.4896,133.52,133.47,26.2223]
[1725498831470,7.4901,133.51,133.47,18.7301]
[1725498832864,7.4901,133.51,133.48,1.49818346]
[1725498834953,7.4901,133.51,133.47,18.7301]
[1725498835160,7.4906,133.5,133.47,18.7301]
[1725498835673,7.4906,133.5,133.46,52.4927]
[1725498837069,7.4906,133.5,133.47,1.49818023]
[1725498839151,18.7215,133.54,133.45,7.4933]
[1725498839152,7.4912,133.49,133.45,7.4933]
[1725498844965,35.2612,133.52,133.44,18.7339]
[1725498845167,6.6542,133.51,133.42,7.4949]
[1725498845483,7.4933,133.46,133.41,26.2338]
[1725498848184,7.4933,133.46,133.42,1.4986705]
[1725498849686,7.4915,133.49,133.44,7.4935]
[1725498849884,7.4915,133.49,133.45,1.49832855]
[1725498850572,7.4918,133.48,133.45,1.49832855]
[1725498850778,7.4918,133.48,133.44,7.4935]
[1725498850968,7.4918,133.48,133.45,1.49836361]
[1725498851783,7.4918,133.48,133.44,7.4935]
[1725498854889,7.4918,133.48,133.45,1.49835971]
[1725498855992,7.4918,133.48,133.44,7.4935]
[1725498863196,7.4923,133.47,133.43,26.2298]
[1725498863374,9.9543675,133.51,133.44,45.0]
[1725498864386,7.4918,133.48,133.44,52.4939]
[1725498865300,7.4918,133.48,133.45,1.49835024]
[1725498866893,3.3001675,133.51,133.45,16.4348]
[1725498867076,7.4901,133.51,133.47,7.4923]
[1725498867389,7.4901,133.51,133.48,1.49804973]
[1725498870304,7.4889,133.53,133.49,7.4908]
[1725498870477,18.719,133.56,133.5,45.0]
[1725498870478,7.4872,133.56,133.5,45.0]
[1725498870682,7.4872,133.56,133.51,1.49759378]
[1725498870980,7.4872,133.56,133.51,8.98759378]
[1725498871172,7.4872,133.56,133.52,1.49759339]
[1725498872493,7.4872,133.56,133.52,1.49759045]
[1725498872969,7.4872,133.56,133.51,7.49]
[1725498873371,7.4872,133.56,133.52,7.4894]
[1725498874311,7.4872,133.56,133.53,1.49753578]
[1725498879922,7.4878,133.55,133.51,14.1489]
[1725498880111,7.4878,133.55,133.52,1.49767317]
[1725498880797,7.4878,133.55,133.51,14.1489]
[1725498882712,7.4878,133.55,133.52,1.49762137]
[1725498884016,7.4878,133.55,133.51,14.1489]
[1725498884203,7.4885,133.54,133.5,52.4904]
[1725498884405,7.4885,133.54,133.5,7.4904]
[1725498884591,7.4893,133.53,133.49,35.2097]
[1725498884792,7.4895,133.52,133.49,16.4824]
[1725498884993,18.72,133.55,133.47,6.4797]
[1725498885214,7.4901,133.51,133.47,6.4797]
[1725498886315,7.4901,133.51,133.48,1.49814077]
[1725498886804,7.4901,133.51,133.47,6.4797]
[1725498888115,7.4907,133.5,133.47,1.49814113]
[1725498888301,7.4912,133.49,133.46,15.8294]
[1725498890426,7.4912,133.49,133.47,1.49827911]
[1725498891094,7.4912,133.49,133.46,15.8294]
[1725498893124,7.4912,133.49,133.45,1.49840307]
[1725498894239,7.4917,133.48,133.44,7.4938]
[1725498895123,7.4917,133.48,133.45,1.49841633]
[1725498895500,7.4917,133.48,133.44,7.4938]
[1725498895725,7.4929,133.46,133.43,15.2684]
[1725498896025,18.7258,133.51,133.41,7.4956]
[1725498896234,18.7258,133.51,133.42,1.49869386]
[1725498896235,7.493,133.46,133.42,1.49869386]
[1725498897225,7.4922,133.48,133.43,7.4944]
[1725498898812,7.4924,133.47,133.43,7.4944]
[1725498901216,7.4924,133.47,133.44,1.49851514]
[1725498902132,7.4924,133.47,133.43,7.4944]
[1725498903332,3.16052937,133.51,133.44,1.4984821]
[1725498903641,7.4916,133.49,133.44,8.9920821]
[1725498904229,7.4916,133.49,133.44,7.4936]
[1725498904434,7.4916,133.49,133.45,1.49836294]
[1725498904627,7.4916,133.49,133.44,7.4936]
[1725498904816,7.4916,133.49,133.45,8.99176334]
[1725498905132,7.4916,133.49,133.46,1.49826181]
[1725498906434,7.4916,133.49,133.45,7.4934]
[1725498906835,7.4906,133.5,133.45,7.4934]
[1725498907033,7.4906,133.5,133.46,45.0]
[1725498909529,7.4912,133.49,133.45,7.4934]
[1725498909844,7.4912,133.49,133.44,41.9718]
[1725498910049,7.4918,133.48,133.44,41.9718]
[1725498910207,7.4923,133.47,133.44,15.7434]
[1725498910411,7.4923,133.47,133.43,6.1526]
[1725498910743,7.4923,133.47,133.42,7.4948]
[1725498911112,7.4929,133.46,133.41,42.8832]
[1725498911816,7.4935,133.45,133.41,42.8832]
[1725498912735,7.4935,133.45,133.41,35.3877]
[1725498912915,7.494,133.44,133.41,16.6494]
[1725498913120,18.7299,133.48,133.38,18.7427]
[1725498913422,7.4946,133.43,133.39,1.49897196]
[1725498915927,7.4946,133.43,133.38,26.2396]
[1725498916241,18.7331,133.46,133.37,21.8586]
[1725498916429,7.4962,133.4,133.37,15.2607]
[1725498918246,7.4962,133.4,133.38,1.49925221]
[1725498918619,7.4957,133.41,133.37,15.2607]
[1725498918841,7.4968,133.39,133.35,18.7467]
[1725498919632,7.4963,133.4,133.35,26.2457]
[1725498920643,44.47341379,133.44,133.35,18.7467]
[1725498920644,7.4968,133.39,133.35,18.7467]
[1725498920827,63.20791379,133.44,133.31,22.8046]
[1725498921025,7.499,133.36,133.31,22.8046]
[1725498922043,7.4993,133.35,133.31,16.4785]
[1725498922235,7.4996,133.34,133.31,16.4785]
[1725498922631,7.4996,133.34,133.29,7.5023]
[1725498922832,7.4996,133.34,133.3,1.50003583]
[1725498923245,7.4996,133.34,133.29,7.5023]
[1725498923742,7.4996,133.34,133.3,1.50003541]
[1725498923942,7.4991,133.35,133.3,1.50003541]
[1725498924451,7.4991,133.35,133.3,46.50003541]
[1725498924745,7.4991,133.35,133.3,45.0]
[1725498925042,7.4991,133.35,133.31,1.49995808]
[1725498925219,6.5913,133.38,133.3,45.0]
[1725498925419,7.5006,133.33,133.28,25.0822]
[1725498925749,7.5014,133.31,133.28,6.3261]
[1725498925934,7.5014,133.31,133.27,16.4785]
[1725498926454,7.502,133.3,133.27,16.4785]
[1725498926824,7.5013,133.31,133.27,16.4785]
[1725498927220,7.5018,133.3,133.28,1.50030468]
[1725498927723,7.5014,133.31,133.28,1.50030468]
[1725498928328,7.5014,133.31,133.27,16.4785]
[1725498928651,7.5013,133.31,133.27,16.4785]
[1725498929753,7.5013,133.31,133.28,1.50030156]
[1725498929928,7.5013,133.31,133.27,16.4785]
[1725498932237,7.5008,133.32,133.27,23.9818]
[1725498932428,7.5008,133.32,133.28,45.0]
[1725498933056,7.5002,133.33,133.28,52.5029]
[1725498933343,22.068669,133.36,133.29,7.5022]
[1725498933344,7.4997,133.34,133.29,7.5022]
[1725498933650,7.4997,133.34,133.3,46.49993775]
[1725498933947,9.90184681,133.38,133.3,52.5017]
[1725498934152,9.90184681,133.38,133.32,7.5006]
[1725498934153,7.4985,133.36,133.32,7.5006]
[1725498934330,7.4985,133.36,133.33,1.49976886]
[1725498934943,7.498,133.37,133.33,1.49976886]
[1725498935651,7.498,133.37,133.33,17.25176886]
[1725498936343,7.4973,133.39,133.33,17.25176886]
[1725498936539,7.4973,133.39,133.34,7.4995]
[1725498936724,7.4974,133.38,133.35,1.49951077]
[1725498937453,7.4974,133.38,133.34,7.4995]
[1725498938535,7.4974,133.38,133.33,23.252]
[1725498938854,7.4974,133.38,133.34,45.0]
[1725498940254,7.4974,133.38,133.35,1.49950548]
[1725498940558,7.4969,133.39,133.35,1.49950548]
[1725498941439,7.4962,133.4,133.36,8.9978287]
[1725498942239,34.3077,133.45,133.37,8.99716218]
[1725498942438,7.4955,133.42,133.37,7.4979]
[1725498942848,7.4955,133.42,133.38,7.4973]
[1725498943238,7.4955,133.42,133.37,7.4978]
[1725498943736,7.4958,133.41,133.36,7.4984]
[1725498945537,7.4958,133.41,133.37,53.99683902]
[1725498946043,7.4958,133.41,133.37,52.4976]
[1725498946239,3.25696285,133.45,133.38,16.4919]
[1725498946442,7.4938,133.45,133.4,7.4958]
[1725498947061,7.4938,133.45,133.41,1.49877705]
[1725498947565,16.1055,133.49,133.42,1.49877698]
[1725498947737,25.0909,133.51,133.43,1.4985193]
[1725498947738,18.726,133.51,133.43,1.4985193]
[1725498947940,7.4919,133.48,133.44,16.1855]
[1725498948234,7.4919,133.48,133.45,1.49845046]
[1725498948467,7.4913,133.49,133.44,23.6794]
[1725498948677,25.1747,133.54,133.45,7.493]
[1725498949050,25.1747,133.54,133.46,1.49814786]
[1725498949357,21.99468838,133.54,133.46,1.49814786]
[1725498949564,25.0935,133.58,133.46,46.49814786]
[1725498949952,25.0935,133.58,133.46,45.0]
[1725498950362,7.4896,133.52,133.47,7.4918]
[1725498950547,7.4896,133.52,133.48,45.0]
[1725498950760,25.0935,133.58,133.49,1.49791585]
[1725498951265,18.7165,133.58,133.49,1.49791585]
[1725498951765,18.7165,133.58,133.48,45.0]
[1725498952356,7.4884,133.54,133.49,7.4911]
[1725498952674,7.4884,133.54,133.5,45.0]
[1725498953268,7.4878,133.55,133.5,45.0]
[1725498953775,18.7165,133.58,133.48,7.4916]
[1725498954064,18.7165,133.58,133.49,1.49794446]
[1725498954269,18.7165,133.58,133.48,7.4916]
[1725498955272,7.489,133.53,133.48,7.4916]
[1725498955470,18.7165,133.58,133.5,15.672]
[1725498955662,7.4884,133.54,133.5,15.672]
[1725498956877,7.4878,133.55,133.51,45.0]
[1725498957067,7.4878,133.55,133.5,23.1626]
[1725498959556,7.4885,133.54,133.5,23.1626]
[1725498959759,7.4885,133.54,133.5,15.672]
[1725498960073,7.4885,133.54,133.51,1.49768744]
[1725498960373,7.4885,133.54,133.5,15.672]
[1725498961173,7.4879,133.55,133.5,23.1624]
[1725498961551,7.4879,133.55,133.51,45.0]
[1725498962355,7.4879,133.55,133.5,23.1624]
[1725498965779,7.4879,133.55,133.51,7.4899]
[1725498966070,7.4863,133.58,133.54,7.4883]
[1725498966279,7.4863,133.58,133.55,1.49723892]
[1725498968260,7.4856,133.59,133.55,7.4878]
[1725498968864,7.4851,133.6,133.55,7.4878]
[1725498969579,7.4851,133.6,133.56,7.4872]
[1725498970769,7.4846,133.61,133.56,7.4872]
[1725498971569,7.486,133.59,133.55,18.719]
[1725498971786,3.19019593,133.63,133.55,18.719]
[1725498972075,24.7843,133.64,133.55,18.719]
[1725498972378,28.02585798,133.64,133.55,18.719]
[1725498973378,7.4862,133.58,133.55,18.719]
[1725498973589,7.4867,133.57,133.53,7.4888]
[1725498974787,7.4874,133.56,133.52,18.723]
[1725498975078,7.4874,133.56,133.52,26.2123]
[1725498975465,18.7133,133.6,133.5,15.672]
[1725498975466,16.6495,133.59,133.5,15.672]
[1725498975689,7.4878,133.55,133.5,23.1621]
[1725498976383,7.4878,133.55,133.51,7.49]
[1725498977475,7.4884,133.54,133.5,23.1624]
[1725498977681,18.7161,133.58,133.5,15.672]
[1725498978485,18.7161,133.58,133.48,7.4915]
[1725498979263,7.4896,133.52,133.48,7.4915]
[1725498981065,18.7161,133.58,133.49,45.0]
[1725498981598,7.4884,133.54,133.5,7.4903]
[1725498983485,7.4892,133.53,133.48,26.2199]
[1725498986673,7.4884,133.54,133.49,7.4911]
[1725498986871,7.4884,133.54,133.5,45.0]
[1725498988178,7.4884,133.54,133.5,52.4904]
[1725499004957,26.18071506,133.59,133.5,45.0]
[1725499005209,7.4858,133.59,133.55,7.4878]
[1725499005500,7.4858,133.59,133.56,1.49711601]
[1725499006305,7.4858,133.59,133.55,45.0]
[1725499007703,7.4861,133.58,133.55,45.0]
[1725499008299,7.4857,133.59,133.55,45.0]
[1725499008610,7.4857,133.59,133.56,1.4971283]
[1725499009194,7.4857,133.59,133.55,45.0]
[1725499013108,7.4868,133.57,133.52,41.2866]
[1725499013312,19.34278305,133.62,133.52,34.8783]
[1725499013686,7.4867,133.57,133.52,42.3673]
[1725499017318,18.713,133.6,133.52,18.7232]
[1725499017615,19.34278305,133.62,133.49,34.4729]
[1725499017616,7.4891,133.53,133.49,34.4729]
[1725499017789,7.4891,133.53,133.49,18.7272]
[1725499018090,7.4891,133.53,133.5,1.49781478]
[1725499019132,7.4891,133.53,133.49,26.2183]
[1725499019702,7.4884,133.54,133.49,26.2183]
[1725499019935,7.4884,133.54,133.5,45.0]
[1725499020497,7.4884,133.54,133.5,52.4906]
[1725499021102,7.4892,133.53,133.5,45.0]
[1725499021316,7.4892,133.53,133.49,26.2183]
[1725499024600,7.4896,133.52,133.48,7.4916]
[1725499024819,21.93360182,133.56,133.46,34.477]
[1725499026096,21.93360182,133.56,133.49,7.491]
[1725499026327,21.93360182,133.56,133.5,1.4977174]
[1725499026508,21.93360182,133.56,133.5,45.0]
[1725499026509,7.4879,133.55,133.5,45.0]
[1725499026706,15.006,133.57,133.52,7.4894]
[1725499026902,15.006,133.57,133.53,1.49744605]
[1725499027095,7.4874,133.56,133.53,1.49744605]
[1725499027304,7.4874,133.56,133.52,7.4893]
[1725499027527,7.4874,133.56,133.53,45.0]
[1725499028412,7.4868,133.57,133.53,45.0]
[1725499030326,7.4873,133.56,133.53,45.0]
[1725499030530,7.4873,133.56,133.52,7.4893]
[1725499030726,7.4873,133.56,133.51,7.49]
[1725499033818,7.4873,133.56,133.52,52.4894]
[1725499034121,16.2889,133.61,133.52,63.7231]
[1725499034122,7.4863,133.58,133.52,63.7231]
[1725499035410,7.4863,133.58,133.54,7.4883]
[1725499035625,7.4851,133.6,133.55,52.4876]
[1725499035817,7.4852,133.6,133.56,7.4868]
[1725499036353,16.2889,133.61,133.55,52.4877]
[1725499036354,7.4857,133.59,133.55,52.4877]
[1725499039430,16.2889,133.61,133.51,34.6144]
[1725499039730,7.4873,133.56,133.51,34.6144]
[1725499039926,7.4873,133.56,133.51,42.1042]
[1725499040720,7.4873,133.56,133.52,1.49750051]
[1725499042614,7.4873,133.56,133.51,42.1042]
[1725499042615,7.4879,133.55,133.51,18.7242]
[1725499055244,7.4861,133.59,133.53,7.4883]
[1725499055433,16.2889,133.61,133.54,45.0]
[1725499056541,7.4862,133.58,133.54,52.4883]
[1725499057146,7.4868,133.57,133.54,45.0]
[1725499057327,7.4874,133.56,133.52,7.489]
[1725499059540,7.4867,133.57,133.52,7.489]
[1725499059737,7.4867,133.57,133.53,52.4888]
[1725499059935,7.4862,133.58,133.54,7.4883]
[1725499060250,7.4862,133.58,133.55,1.49718282]
[1725499063356,7.4862,133.58,133.54,7.4883]
[1725499065472,7.4862,133.58,133.53,52.4887]
[1725499067165,7.4868,133.57,133.53,45.0]
[1725499067378,7.4868,133.57,133.52,26.2126]
[1725499069034,18.7144,133.59,133.51,7.49]
[1725499069644,18.7144,133.59,133.52,1.49755234]
[1725499070344,7.4878,133.55,133.52,1.49755234]
[1725499072166,7.4874,133.56,133.52,1.49755234]
[1725499072838,7.4874,133.56,133.51,7.49]
[1725499072839,7.4867,133.57,133.51,18.7246]
[1725499073060,7.4867,133.57,133.52,45.0]
[1725499073957,7.4873,133.56,133.52,45.0]
[1725499074258,7.4873,133.56,133.51,18.7246]
[1725499075359,7.4873,133.56,133.52,7.4893]
[1725499080356,19.62129316,133.57,133.5,7.4905]
[1725499080557,16.3803,133.57,133.5,7.4905]
[1725499080851,7.4887,133.54,133.5,7.4905]
[1725499081454,7.488,133.55,133.51,8.98767708]
[1725499081653,7.488,133.55,133.52,1.49754731]
[1725499083451,7.4871,133.57,133.53,1.49757733]
[1725499084163,7.4873,133.56,133.52,52.4894]
[1725499084459,7.488,133.55,133.51,7.4898]
[1725499086638,7.4886,133.54,133.5,18.7261]
[1725499087249,7.4886,133.54,133.5,26.2166]
[1725499089983,15.5352,133.56,133.47,18.7297]
[1725499090166,7.4902,133.51,133.47,18.7297]
[1725499090541,7.4902,133.51,133.47,26.2219]
[1725499092641,18.8102563,133.56,133.47,18.7297]
[1725499092848,18.8102563,133.56,133.48,45.0]
[1725499093551,7.4885,133.54,133.49,7.4911]
[1725499093755,7.4885,133.54,133.5,1.49777708]
[1725499095452,7.4885,133.54,133.5,7.4905]
[1725499095660,7.4885,133.54,133.51,1.49764944]
[1725499097964,7.4885,133.54,133.5,7.4905]
[1725499099056,7.4885,133.54,133.51,1.49764683]
[1725499099765,7.4885,133.54,133.5,7.4905]
[1725499100295,15.7,133.59,133.51,1.49763603]
[1725499100460,7.4862,133.58,133.53,7.4887]
[1725499100661,7.4862,133.58,133.54,1.49734489]
[1725499103365,7.4867,133.57,133.54,1.49734489]
[1725499103560,15.7,133.59,133.5,34.0653]
[1725499103765,7.4873,133.56,133.51,7.4898]
[1725499103975,7.4878,133.55,133.51,7.4898]
[1725499108693,7.4878,133.55,133.52,1.49762045]
[1725499108886,34.4144,133.59,133.53,1.49761315]
[1725499108887,7.4873,133.56,133.53,1.49761315]
[1725499109081,7.4873,133.56,133.52,7.4893]
[1725499110370,7.4873,133.56,133.53,1.49741129]
[1725499110569,7.4873,133.56,133.52,7.4893]
[1725499119068,7.4867,133.57,133.53,7.4889]
[1725499119268,7.4867,133.57,133.54,1.49738462]
[1725499119975,41.1318,133.62,133.54,45.0]
[1725499120174,41.1318,133.62,133.53,45.0]
[1725499120383,7.4856,133.59,133.55,7.4878]
[1725499121590,7.4856,133.59,133.54,26.2087]
[1725499121776,7.4856,133.59,133.55,1.4972042]
[1725499124198,7.4856,133.59,133.54,26.2087]
[1725499124888,7.4861,133.58,133.54,26.2087]
[1725499126807,7.4857,133.59,133.55,46.49721628]
[1725499127995,7.4857,133.59,133.55,45.0]
[1725499130397,7.4861,133.58,133.54,18.7205]
[1725499131181,7.4861,133.58,133.54,26.2088]
[1725499132007,7.4857,133.59,133.55,46.49727761]
[1725499133201,7.4857,133.59,133.55,45.0]
[1725499133603,7.4851,133.6,133.55,45.0]
[1725499133898,7.4851,133.6,133.56,1.49715015]
[1725499134087,7.4844,133.61,133.57,7.4863]
[1725499134291,7.4844,133.61,133.58,1.49686222]
[1725499135182,7.4844,133.61,133.57,7.4863]
[1725499142615,22.0166452,133.63,133.53,18.7213]
[1725499142783,34.5933,133.61,133.53,18.7213]
[1725499142980,7.487,133.57,133.53,18.7213]
[1725499143609,7.4873,133.56,133.51,16.3528]
[1725499143917,7.4873,133.56,133.52,1.49750742]
[1725499148117,7.4873,133.56,133.51,7.4896]
[1725499151023,7.4873,133.56,133.52,1.49750931]
[1725499151822,7.4873,133.56,133.51,7.4896]
[1725499152202,7.4873,133.56,133.5,26.2161]
[1725499152203,16.3361,133.56,133.5,26.2161]
[1725499152723,16.3361,133.56,133.45,23.365]
[1725499152932,7.491,133.5,133.45,7.4934]
[1725499153629,7.4914,133.49,133.44,26.2288]
[1725499153806,7.4929,133.46,133.41,18.7387]
[1725499155204,7.4929,133.46,133.42,45.0]
[1725499155913,7.4929,133.46,133.42,52.495]